bitfinex/quotes_ETHUSD_20250823
["timestamp","ask_amount","ask_price","bid_price","bid_amount"]
[1755978630431,1e-08,4766.3,4766.2,6.0033075]
[1755978633432,1e-08,4766.3,4766.2,6.4576075]
[1755978633843,1e-08,4766.3,4766.2,6.0033075]
[1755978634016,1e-08,4766.3,4766.2,7.26775568]
[1755978639850,1e-08,4766.3,4766.2,10.92775568]
[1755978650991,0.29040001,4766.3,4766.2,2.2029075]
[1755978651295,0.72390001,4766.3,4766.2,2.2029075]
[1755978651452,0.72390001,4766.3,4766.2,5.7049075]
[1755978655405,0.29040001,4766.3,4766.2,5.7049075]
[1755978656472,0.72390001,4766.3,4766.2,5.7049075]
[1755978656682,0.29040001,4766.3,4766.2,5.7049075]
[1755978657294,0.72390001,4766.3,4766.2,5.7049075]
[1755978662398,0.29040001,4766.3,4766.2,5.7049075]
[1755978664841,1e-08,4766.3,4766.2,5.7049075]
[1755978666340,1e-08,4766.3,4766.2,6.0007075]
[1755978666543,1e-08,4766.3,4766.2,6.4597075]
[1755978666907,1e-08,4766.3,4766.2,6.0007075]
[1755978667409,1e-08,4766.3,4766.2,5.7049075]
[1755978668233,1e-08,4766.3,4766.2,7.3179075]
[1755978669142,1e-08,4766.3,4766.2,7.6137075]
[1755978669364,1e-08,4766.3,4766.2,8.0727075]
[1755978669866,1e-08,4766.3,4766.2,7.6137075]
[1755978670561,1e-08,4766.3,4766.2,7.3179075]
[1755978673087,1e-08,4766.3,4766.2,7.6137075]
[1755978673361,1e-08,4766.3,4766.2,8.0727075]
[1755978673766,1e-08,4766.3,4766.2,7.6137075]
[1755978674766,1e-08,4766.3,4766.2,7.3179075]
[1755978678361,0.29040001,4766.3,4766.2,0.1048]
[1755978678571,8.49342244,4766.3,4766.2,0.1048]
[1755978678770,7.76070222,4766.3,4766.2,0.1048]
[1755978685372,0.72390001,4766.3,4766.2,0.1048]
[1755978686463,0.29040001,4766.3,4766.2,3.6068]
[1755978686665,1e-08,4766.3,4766.2,6.0169075]
[1755978686878,1e-08,4766.3,4766.2,6.4461075]
[1755978687566,1e-08,4766.3,4766.2,4.348]
[1755978687783,1e-08,4766.3,4766.2,3.6068]
[1755978688191,0.06080001,4766.3,4766.2,3.6068]
[1755978688362,1e-08,4766.3,4766.2,3.6068]
[1755978689165,1e-08,4766.3,4766.2,6.0169075]
[1755978689374,1e-08,4766.3,4766.2,3.79864036]
[1755978689576,1e-08,4766.3,4766.2,7.30064036]
[1755978695709,1e-08,4766.3,4766.2,5.7039075]
[1755978697188,1e-08,4766.3,4766.2,2.2029075]
[1755978697388,1e-08,4766.3,4766.2,5.7039075]
[1755978698681,1e-08,4766.3,4766.2,2.5149075]
[1755978698909,1e-08,4766.3,4766.2,6.0159075]
[1755978699106,0.31410001,4766.3,4766.2,2.2029075]
[1755978699289,0.31410001,4766.3,4766.2,5.7039075]
[1755978702111,1e-08,4766.3,4766.2,6.0159075]
[1755978702415,1e-08,4766.3,4766.2,6.4451075]
[1755978704712,1e-08,4766.3,4766.2,6.0159075]
[1755978704911,1e-08,4766.3,4766.2,6.4451075]
[1755978705510,1e-08,4766.3,4766.2,7.2680093]
[1755978712126,1e-08,4766.3,4766.2,3.7670093]
[1755978712328,1e-08,4766.3,4766.2,6.0159075]
[1755978712836,1e-08,4766.3,4766.2,6.4732075]
[1755978720823,1e-08,4766.3,4766.2,6.0159075]
[1755978722843,1e-08,4766.3,4766.2,6.4732075]
[1755978723003,1e-08,4766.3,4766.2,6.0159075]
[1755978723206,1e-08,4766.3,4766.2,5.7039075]
[1755978724638,1e-08,4766.3,4766.2,2.2029075]
[1755978725112,1e-08,4766.3,4766.2,5.7039075]
[1755978725945,1e-08,4766.3,4766.2,6.0156075]
[1755978726525,0.31420001,4766.3,4766.2,5.7039075]
[1755978730327,1e-08,4766.3,4766.2,5.7039075]
[1755978734469,1e-08,4766.3,4766.2,6.0156075]
[1755978734671,1e-08,4766.3,4766.2,6.4729075]
[1755978739669,1e-08,4766.3,4766.2,6.0156075]
[1755978740032,1e-08,4766.3,4766.2,5.7039075]
[1755978741663,0.31510001,4766.3,4766.2,5.7039075]
[1755978743273,1e-08,4766.3,4766.2,5.7039075]
[1755978744770,0.31510001,4766.3,4766.2,5.7039075]
[1755978745552,1e-08,4766.3,4766.2,5.7039075]
[1755978747977,5.26242225,4766.6,4766.5,2.09797545]
[1755978748175,5.87214448,4766.6,4766.5,5.59797545]
[1755978748347,0.022,4766.8,4766.7,2.09788742]
[1755978748548,0.022,4766.8,4766.7,5.59788742]
[1755978748549,0.0601,4766.8,4766.7,5.59788742]
[1755978752883,0.0601,4766.8,4766.7,3.5]
[1755978754763,0.0601,4766.8,4766.7,5.59788742]
[1755978754985,5.82252224,4766.8,4766.7,5.59788742]
[1755978760695,5.82252224,4766.8,4766.7,3.5]
[1755978761388,5.82252224,4766.8,4766.7,5.59788742]
[1755978765266,5.82252224,4766.8,4766.7,3.5]
[1755978765865,3.0,4766.7,4766.5,0.1048]
[1755978766086,0.3151,4766.6,4766.5,0.1048]
[1755978766491,0.7469,4766.6,4766.5,0.1048]
[1755978775401,0.7489,4766.6,4766.5,0.1048]
[1755978775609,1.2391388,4766.6,4766.5,0.1048]
[1755978776470,0.4922388,4766.6,4766.5,0.1048]
[1755978776671,0.5916388,4766.6,4766.5,0.1048]
[1755978780210,0.002,4766.6,4766.5,0.4136]
[1755978780396,5.76442224,4766.6,4766.5,0.8769]
[1755978780600,9.26442224,4766.6,4766.3,0.001]
[1755978780779,5.76542224,4766.6,4766.3,0.001]
[1755978780982,0.58922222,4766.5,4766.3,0.001]
[1755978781184,0.58922222,4766.5,4766.3,0.4643]
[1755978784504,0.58922222,4766.5,4766.3,0.001]
[1755978789931,0.002,4766.4,4766.3,0.001]
[1755978790127,0.58922222,4766.5,4766.3,0.001]
[1755978790333,9.26342224,4766.6,4766.3,0.4643]
[1755978792103,5.76442224,4766.6,4766.3,0.4643]
[1755978794439,5.76442224,4766.6,4766.3,0.4143]
[1755978795555,5.76442224,4766.6,4766.5,0.4136]
[1755978795714,8.76442224,4766.6,4766.5,0.4136]
[1755978795915,8.76442224,4766.6,4766.5,0.1048]
[1755978798551,8.86342224,4766.6,4766.5,0.1048]
[1755978803743,9.31735072,4766.6,4766.2,0.1048]
[1755978803918,5.76242224,4766.3,4766.2,0.1048]
[1755978804119,5.76242224,4766.3,4766.2,0.5585]
[1755978804320,5.76242224,4766.3,4766.2,0.8684]
[1755978813066,5.76242224,4766.3,4766.2,0.5585]
[1755978813282,5.76242224,4766.3,4766.2,0.1048]
[1755978813972,6.04932224,4766.3,4766.2,0.1048]
[1755978814167,5.97492224,4766.3,4766.2,0.1048]
[1755978814367,5.68802224,4766.3,4766.2,0.1048]
[1755978817373,3.002,4766.6,4766.2,0.1048]
[1755978817676,3.002,4766.6,4766.2,0.4147]
[1755978817677,5.76242224,4766.3,4766.2,0.4147]
[1755978818137,5.76242224,4766.3,4766.2,0.8684]
[1755978822201,5.76242224,4766.3,4766.2,0.5585]
[1755978823307,5.76242224,4766.3,4766.2,0.1048]
[1755978824500,5.76442224,4766.3,4766.2,0.1048]
[1755978831505,5.76442224,4766.3,4766.2,0.5358]
[1755978839231,8.86342224,4766.3,4766.1,0.001]
[1755978839432,2.09815152,4766.1,4765.8,0.001]
[1755978839648,5.86272224,4765.9,4765.8,0.001]
[1755978839823,8.80887036,4765.9,4765.8,0.001]
[1755978840139,9.60785711,4765.9,4765.8,0.001]
[1755978840321,8.9483593,4765.9,4765.8,0.001]
[1755978840522,12.48095926,4765.9,4765.8,0.001]
[1755978840725,12.51564605,4765.9,4765.8,0.001]
[1755978840907,12.8663879,4765.9,4765.8,0.001]
[1755978841307,5.0982836,4765.8,4765.3,0.001]
[1755978841629,10.34150738,4765.8,4765.3,0.001]
[1755978841814,10.14449449,4765.8,4765.3,0.001]
[1755978842341,9.57818109,4765.8,4765.3,0.001]
[1755978842735,9.90651749,4765.8,4765.3,0.001]
[1755978843136,9.67611749,4765.8,4765.3,0.001]
[1755978846342,9.47909555,4765.8,4765.3,0.001]
[1755978851248,9.15075915,4765.8,4765.3,0.001]
[1755978854354,9.47909182,4765.8,4765.3,0.001]
[1755978857170,9.47909182,4765.8,4765.3,0.432]
[1755978857949,9.48109182,4765.8,4765.3,0.432]
[1755978858238,9.15275915,4765.8,4765.3,0.432]
[1755978861467,9.48109301,4765.8,4765.3,0.432]
[1755978864244,9.67727501,4765.8,4765.3,0.432]
[1755978865469,9.67734081,4765.8,4765.3,0.432]
[1755978868360,10.14205421,4765.8,4765.5,0.4437]
[1755978868893,4.47745721,4765.8,4765.7,0.734]
[1755978869072,0.002,4765.8,4765.7,0.734]
[1755978869446,0.45544664,4765.8,4765.7,0.734]
[1755978870251,0.002,4765.8,4765.7,0.734]
[1755978897885,0.00053151,4765.8,4765.7,0.734]
[1755978899401,0.00053151,4765.8,4765.7,1.3774256]
[1755978901009,0.00053151,4765.8,4765.7,0.734]
[1755978901210,0.29093151,4765.8,4765.7,0.001]
[1755978901507,9.05335375,4765.8,4765.7,0.001]
[1755978902909,8.76295375,4765.8,4765.7,0.001]
[1755978904379,3.00053151,4765.8,4765.7,0.001]
[1755978910322,3.00053151,4765.8,4765.7,0.7445]
[1755978911086,3.00053151,4765.8,4765.7,0.4385]
[1755978911302,3.00053151,4765.8,4765.7,0.001]
[1755978914020,0.00053151,4765.8,4765.7,0.7445]
[1755978914189,0.00053151,4765.8,4765.7,0.8493]
[1755978920222,0.00053151,4765.8,4765.7,0.8436]
[1755978922612,0.00053151,4765.8,4765.7,0.1058]
[1755978923430,0.00053151,4765.8,4765.7,0.5376]
[1755978923922,0.00053151,4765.8,4765.7,0.8509]
[1755978930747,0.00053151,4765.8,4765.7,0.1058]
[1755978930748,8.92376968,4765.8,4765.7,0.1058]
[1755978931239,0.09953151,4765.8,4765.7,0.1058]
[1755978931443,0.00053151,4765.8,4765.7,0.1058]
[1755978933714,0.00053151,4765.8,4765.7,0.5376]
[1755978934107,0.00053151,4765.8,4765.7,0.4191]
[1755978934325,0.00053151,4765.8,4765.7,0.8509]
[1755978935339,0.00053151,4765.8,4765.7,2.94922763]
[1755978935543,0.00053151,4765.8,4765.7,3.45419592]
[1755978937409,0.00053151,4765.8,4765.7,6.94719592]
[1755978946061,0.00118612,4766.6,4765.7,6.94719592]
[1755978946267,0.00118612,4766.6,4766.5,2.09797545]
[1755978946576,0.00118612,4766.6,4766.5,5.69477545]
[1755978948870,0.00118612,4766.6,4766.5,6.13867545]
[1755978952369,4.37558612,4767.7,4766.6,2.09789461]
[1755978952538,4.37558612,4767.7,4766.7,3.492]
[1755978952742,4.37558612,4767.7,4767.1,0.1048]
[1755978955052,0.002,4767.6,4767.1,0.1048]
[1755978956355,8.82014347,4767.3,4767.1,0.1048]
[1755978960356,8.82014347,4767.3,4767.1,0.5487]
[1755978960555,8.82014347,4767.3,4767.1,0.1048]
[1755978965170,8.82014347,4767.3,4767.1,0.5487]
[1755978965380,11.82014347,4767.3,4767.2,0.4439]
[1755978965602,11.82014347,4767.3,4767.1,0.1048]
[1755978971677,11.82014347,4767.3,4767.1,0.1058]
[1755978975031,11.82014347,4767.3,4767.1,0.5497]
[1755978978115,11.82014347,4767.3,4767.2,0.4439]
[1755978978415,12.2739741,4767.3,4767.2,0.4439]
[1755978980610,12.2739741,4767.3,4767.2,0.4038]
[1755978980948,12.2739741,4767.3,4767.2,0.8785]
[1755978984955,15.7639741,4767.3,4767.2,0.1048]
[1755979003484,3.0,4767.2,4767.1,0.001]
[1755979003645,3.45383063,4767.2,4767.1,0.001]
[1755979005372,3.45383063,4767.2,4767.1,0.7747]
[1755979006756,11.82014347,4767.2,4767.1,0.7747]
[1755979025078,3.0,4767.5,4767.2,2.09766739]
[1755979025278,3.0,4767.5,4767.4,0.3039]
[1755979025478,3.0,4767.5,4767.4,0.8702]
[1755979026211,8.82214347,4767.6,4767.4,0.8702]
[1755979026379,8.82214347,4767.6,4767.4,2.9677711]
[1755979026581,8.82214347,4767.6,4767.5,0.4615]
[1755979030619,8.82214347,4767.6,4767.5,0.7654]
[1755979051955,8.82214347,4767.6,4767.5,0.4615]
[1755979052253,8.82214347,4767.6,4767.4,3.5928]
[1755979054527,8.82214347,4767.6,4767.4,4.0643]
[1755979058554,8.82214347,4767.6,4767.5,0.4715]
[1755979071754,8.82214347,4767.6,4767.4,3.5928]
[1755979072086,8.82214347,4767.6,4767.4,4.0443]
[1755979073787,8.82214347,4767.6,4767.4,6.1418524]
[1755979074148,8.82214347,4767.6,4767.5,0.4515]
[1755979078093,0.002,4767.6,4767.5,0.4515]
[1755979082106,3.0,4767.5,4767.4,0.1048]
[1755979082281,3.002,4767.6,4767.3,0.001]
[1755979082498,3.486,4767.5,4767.3,0.001]
[1755979094009,3.486,4767.5,4767.3,0.4525]
[1755979096029,3.486,4767.5,4767.3,0.001]
[1755979099620,3.002,4767.6,4767.3,0.001]
[1755979099826,6.486,4767.5,4767.4,0.4285]
[1755979102356,6.486,4767.5,4767.3,0.001]
[1755979103051,6.486,4767.5,4767.3,0.4295]
[1755979103239,6.486,4767.5,4767.3,0.001]
[1755979104038,6.486,4767.5,4767.3,0.4295]
[1755979105538,6.486,4767.5,4767.4,0.4285]
[1755979108362,6.486,4767.5,4767.3,0.001]
[1755979108864,6.486,4767.5,4767.3,0.4295]
[1755979109366,6.486,4767.5,4767.4,0.4285]
[1755979109533,6.93956122,4767.5,4767.4,0.4285]
[1755979109729,6.486,4767.5,4767.4,0.4285]
[1755979110958,6.93956496,4767.5,4767.4,0.4285]
[1755979126672,3.45356496,4767.5,4767.4,0.4285]
[1755979126874,6.93856496,4767.5,4767.4,0.4285]
[1755979127846,3.0,4767.4,4767.3,0.001]
[1755979128051,3.45356496,4767.4,4767.3,0.001]
[1755979130292,3.45356496,4767.4,4767.3,0.4329]
[1755979130776,3.0,4767.4,4767.3,0.739]
[1755979131685,3.485,4767.4,4767.3,0.739]
[1755979131887,3.002,4767.6,4767.3,0.739]
[1755979132074,3.0,4767.4,4767.3,0.3071]
[1755979132275,3.0,4767.4,4767.3,0.739]
[1755979133596,3.45366617,4767.4,4767.3,0.739]
[1755979133808,3.0,4767.4,4767.3,0.739]
[1755979135016,3.485,4767.4,4767.3,0.739]
[1755979142420,3.002,4767.6,4767.3,0.739]
[1755979142637,3.0,4767.4,4767.3,0.3071]
[1755979143128,3.0,4767.4,4767.3,0.739]
[1755979145305,3.45369459,4767.4,4767.3,0.4329]
[1755979146293,3.45369459,4767.4,4767.3,0.001]
[1755979149925,3.45361883,4767.4,4767.3,0.001]
[1755979157140,0.45361883,4767.4,4767.3,0.001]
[1755979157342,6.484,4767.4,4767.3,0.001]
[1755979157504,6.93761883,4767.4,4767.3,0.001]
[1755979160316,6.93761883,4767.4,4767.3,0.4593]
[1755979162145,6.93761883,4767.4,4767.3,0.001]
[1755979163142,9.2320455,4767.4,4767.3,0.001]
[1755979163442,9.3368455,4767.4,4767.3,0.001]
[1755979163811,10.10064141,4767.4,4767.3,0.001]
[1755979164444,9.70702175,4767.4,4767.3,0.001]
[1755979164749,10.10061852,4767.4,4767.3,0.001]
[1755979165048,10.10057493,4767.4,4767.3,0.001]
[1755979165455,9.90379199,4767.4,4767.3,0.001]
[1755979166256,9.33676846,4767.4,4767.3,0.001]
[1755979166755,9.33674496,4767.4,4767.3,0.001]
[1755979171140,9.66497158,4767.4,4767.3,0.001]
[1755979174365,9.46822484,4767.4,4767.3,0.001]
[1755979174571,9.66490115,4767.4,4767.3,0.001]
[1755979177567,9.46822484,4767.4,4767.3,0.001]
[1755979177775,9.66489355,4767.4,4767.3,0.001]
[1755979184083,9.46822484,4767.4,4767.3,0.001]
[1755979184286,9.66493042,4767.4,4767.3,0.001]
[1755979185582,10.52066221,4767.4,4767.3,0.001]
[1755979187467,7.03766221,4767.4,4767.3,0.001]
[1755979187670,10.52066221,4767.4,4767.3,0.001]
[1755979188753,7.03766221,4767.4,4767.3,0.001]
[1755979188952,10.52066221,4767.4,4767.3,0.001]
[1755979189554,10.19243559,4767.4,4767.3,0.001]
[1755979191890,10.94867734,4767.4,4767.3,0.001]
[1755979192185,10.19243559,4767.4,4767.3,0.001]
[1755979192766,10.52067096,4767.4,4767.3,0.001]
[1755979193883,10.32415023,4767.4,4767.3,0.001]
[1755979194089,10.5210669,4767.4,4767.3,0.001]
[1755979194462,11.27718097,4767.4,4767.3,0.001]
[1755979194786,11.27722063,4767.4,4767.3,0.001]
[1755979196192,11.27719538,4767.4,4767.3,0.001]
[1755979196713,10.52108131,4767.4,4767.3,0.001]
[1755979197468,10.52104973,4767.4,4767.3,0.001]
[1755979200463,10.52104973,4767.4,4767.1,50.001]
[1755979200464,14.57781086,4767.2,4767.1,44.9729415]
[1755979200766,20.16048532,4767.2,4767.1,44.9729415]
[1755979200969,19.70684213,4767.2,4767.1,44.9729415]
[1755979201304,20.16049022,4767.2,4767.1,39.943883]
[1755979201483,19.02638606,4767.2,4767.1,39.943883]
[1755979201686,19.02638606,4767.2,4767.1,38.80854453]
[1755979202399,19.02638606,4767.2,4767.1,33.77948603]
[1755979202801,18.51445895,4767.2,4767.1,33.77948603]
[1755979202970,19.02607845,4767.2,4767.1,33.77948603]
[1755979203470,20.15922225,4767.2,4767.1,28.75042753]
[1755979204079,20.48748994,4767.2,4767.1,28.75042753]
[1755979204702,20.48748994,4767.2,4767.1,23.72136903]
[1755979205201,27.59748994,4767.2,4767.1,23.72136903]
[1755979205574,26.46434614,4767.2,4767.1,18.69231053]
[1755979205774,26.46424314,4767.2,4767.1,18.69231053]
[1755979206498,22.98124314,4767.2,4767.1,13.66325203]
[1755979206702,26.46424314,4767.2,4767.1,13.66325203]
[1755979208007,22.65297545,4767.2,4767.1,13.94825203]
[1755979208307,25.46270941,4767.2,4767.1,14.38815203]
[1755979208484,26.12270941,4767.2,4767.1,14.38815203]
[1755979209111,13.91447164,4767.2,4767.1,14.38815203]
[1755979209277,17.39747164,4767.2,4767.1,14.38815203]
[1755979209912,16.64256594,4767.2,4767.1,14.38815203]
[1755979210119,18.25656594,4767.2,4767.1,14.38815203]
[1755979211308,18.58481868,4767.2,4767.1,14.38815203]
[1755979212583,18.58461664,4767.2,4767.1,14.38815203]
[1755979213184,15.10161664,4767.2,4767.1,14.38815203]
[1755979213411,18.58461664,4767.2,4767.1,14.38815203]
[1755979213792,2.89394925,4767.2,4767.1,14.38815203]
[1755979214002,6.18032504,4767.2,4767.1,14.38815203]
[1755979214400,2.39590083,4767.2,4767.1,14.38815203]
[1755979214715,8.42525274,4767.2,4767.1,14.38815203]
[1755979214886,8.87890083,4767.2,4767.1,14.38815203]
[1755979215283,8.42525274,4767.2,4767.1,14.38815203]
[1755979215889,6.81125274,4767.2,4767.1,14.38815203]
[1755979216111,6.81125274,4767.2,4767.1,14.49295203]
[1755979218413,6.81125274,4767.2,4767.1,14.49395203]
[1755979218620,6.483,4767.2,4767.1,14.49395203]
[1755979218919,6.485,4767.2,4767.1,14.49395203]
[1755979224323,6.484,4767.2,4767.1,14.49395203]
[1755979226328,6.484,4767.2,4767.1,14.38915203]
[1755979235900,6.484,4767.2,4767.1,14.10415203]
[1755979236306,6.484,4767.2,4767.1,14.41075203]
[1755979239152,6.484,4767.2,4767.1,13.66425203]
[1755979239311,6.484,4767.2,4767.1,14.12735203]
[1755979239512,6.484,4767.2,4767.1,14.43395203]
[1755979242243,9.44002149,4767.2,4767.1,13.66425203]
[1755979242416,10.95819594,4767.2,4767.1,13.66425203]
[1755979242811,10.39188971,4767.2,4767.1,13.66425203]
[1755979244044,10.72014201,4767.2,4767.1,13.66425203]
[1755979245347,11.28688574,4767.2,4767.1,13.66425203]
[1755979246853,22.85408312,4767.2,4767.1,13.66425203]
[1755979247019,22.09817742,4767.2,4767.1,13.66425203]
[1755979247947,28.87992512,4767.2,4767.1,13.66425203]
[1755979248155,28.13959372,4767.2,4767.1,5.31281193]
[1755979248352,5.75771139,4767.1,4767.0,0.001]
[1755979248522,11.76580231,4767.1,4767.0,0.001]
[1755979250319,12.89678013,4767.1,4767.0,0.001]
[1755979251024,13.22510233,4767.1,4767.0,0.001]
[1755979251458,12.09412451,4767.1,4767.0,0.001]
[1755979251772,12.09288974,4767.1,4767.0,0.001]
[1755979251947,15.57488974,4767.1,4767.0,0.001]
[1755979252271,15.54985557,4767.1,4767.0,0.001]
[1755979252474,12.72881349,4767.1,4767.0,0.7444]
[1755979252639,15.45606182,4767.1,4767.0,0.7444]
[1755979252839,15.56086182,4767.1,4767.0,0.7444]
[1755979253662,15.56086182,4767.1,4767.0,0.4407]
[1755979253983,15.56086182,4767.1,4767.0,0.001]
[1755979255039,15.56070264,4767.1,4767.0,0.001]
[1755979255238,16.12576296,4767.1,4767.0,0.001]
[1755979256370,15.56070264,4767.1,4767.0,0.001]
[1755979256544,16.12573152,4767.1,4767.0,0.001]
[1755979256743,15.56070264,4767.1,4767.0,0.001]
[1755979256944,16.12572109,4767.1,4767.0,0.001]
[1755979257743,16.12569923,4767.1,4767.0,0.001]
[1755979260559,15.56068078,4767.1,4767.0,0.001]
[1755979261085,15.36547167,4767.1,4767.0,0.001]
[1755979261265,15.56171174,4767.1,4767.0,0.001]
[1755979263880,15.23338954,4767.1,4767.0,0.001]
[1755979264474,22.34338954,4767.1,4767.0,0.001]
[1755979266962,22.67170106,4767.1,4767.0,0.001]
[1755979268167,22.78949806,4767.1,4767.0,0.001]
[1755979268368,23.92047588,4767.1,4767.0,0.001]
[1755979269692,7.0187554,4767.0,4766.9,0.001]
[1755979269856,9.59643055,4767.0,4766.9,0.001]
[1755979270258,16.51050191,4767.0,4766.9,0.001]
[1755979270464,16.70693663,4767.0,4766.9,0.001]
[1755979271169,5.7577994,4766.9,4766.8,0.021]
[1755979271393,10.20397782,4766.9,4766.8,0.021]
[1755979271793,12.41597782,4766.9,4766.8,0.021]
[1755979271994,10.20397782,4766.9,4766.8,0.021]
[1755979273077,10.53230099,4766.9,4766.8,0.021]
[1755979273797,2.75797545,4766.5,4766.4,0.001]
[1755979274094,28.03318928,4766.5,4766.4,0.001]
[1755979276783,28.03362952,4766.5,4766.4,0.001]
[1755979279889,28.03371967,4766.5,4766.4,0.001]
[1755979280093,28.03357096,4766.5,4766.4,0.001]
[1755979280404,28.03354464,4766.5,4766.4,0.001]
[1755979280568,4.921,4766.4,4766.1,1e-08]
[1755979280769,3.66,4766.2,4766.1,1e-08]
[1755979280966,4.62452537,4766.2,4766.1,1e-08]
[1755979281583,6.72263287,4766.2,4766.1,1e-08]
[1755979282094,7.05091628,4766.2,4766.1,0.76750001]
[1755979282260,10.53291628,4766.2,4766.1,0.76750001]
[1755979284796,10.53291628,4766.2,4766.1,0.46800001]
[1755979285095,17.64291628,4766.2,4766.1,0.46800001]
[1755979285302,17.64291628,4766.2,4766.1,1e-08]
[1755979285467,17.64291628,4766.2,4766.1,0.76750001]
[1755979287104,18.90391628,4766.2,4766.1,0.76750001]
[1755979287792,18.90391628,4766.2,4766.1,0.46800001]
[1755979288877,5.75815152,4766.1,4766.0,0.001]
[1755979289097,8.33658988,4766.1,4766.0,0.001]
[1755979289828,8.44141225,4766.1,4766.0,0.001]
[1755979291092,15.55141225,4766.1,4766.0,0.001]
[1755979294333,15.55147939,4766.1,4766.0,0.001]
[1755979296229,15.65047939,4766.1,4766.0,0.001]
[1755979298348,15.9788591,4766.1,4766.0,0.001]
[1755979299434,15.66442813,4766.1,4766.0,0.001]
[1755979299733,15.97906211,4766.1,4766.0,0.001]
[1755979299929,15.86107437,4766.1,4766.0,0.001]
[1755979300140,15.97906398,4766.1,4766.0,1e-08]
[1755979302340,2.75823957,4765.9,4765.8,0.02]
[1755979302640,21.08165852,4765.9,4765.8,0.02]
[1755979302949,5.7582836,4765.8,4765.6,0.001]
[1755979303152,6.92671369,4765.8,4765.6,0.001]
[1755979303931,5.75832763,4765.7,4765.6,0.001]
[1755979304127,5.75837166,4765.6,4765.5,1e-08]
[1755979304345,7.02530175,4765.6,4765.5,1e-08]
[1755979304819,7.35370814,4765.6,4765.5,1e-08]
[1755979305951,7.05187221,4765.6,4765.5,1e-08]
[1755979306741,7.15087221,4765.6,4765.5,1e-08]
[1755979307134,8.41187221,4765.6,4765.5,1e-08]
[1755979308045,8.08346582,4765.6,4765.5,1e-08]
[1755979308839,15.19346582,4765.6,4765.5,1e-08]
[1755979309153,16.90951983,4765.6,4765.5,0.75210001]
[1755979309361,17.42128279,4765.6,4765.5,0.75210001]
[1755979309741,17.42128862,4765.6,4765.5,0.75210001]
[1755979311158,17.74969045,4765.6,4765.5,0.75210001]
[1755979311659,17.74969045,4765.6,4765.5,1e-08]
[1755979312027,17.74969045,4765.6,4765.5,0.31150001]
[1755979312263,17.74969045,4765.6,4765.5,0.76410001]
[1755979313431,17.75429045,4765.6,4765.5,1e-08]
[1755979313734,17.75429045,4765.6,4765.0,0.001]
[1755979313735,0.66,4765.2,4765.0,1e-08]
[1755979313939,2.75872397,4764.8,4764.2,0.001]
[1755979314146,10.22044093,4764.8,4764.2,0.001]
[1755979314341,10.32524093,4764.8,4764.2,0.001]
[1755979314758,10.65371471,4764.8,4764.2,0.001]
[1755979317144,10.65371471,4764.8,4764.7,1e-08]
[1755979317555,5.75876802,4764.7,4764.6,1e-08]
[1755979317755,5.75881207,4764.6,4764.5,1e-08]
[1755979317969,17.43561331,4764.6,4764.5,1e-08]
[1755979318948,17.04266073,4764.6,4764.5,1e-08]
[1755979319171,17.43524823,4764.6,4764.5,1e-08]
[1755979320066,17.43522118,4764.6,4764.5,1e-08]
[1755979320568,3.66,4764.0,4763.8,1e-08]
[1755979320769,2.09942895,4763.2,4763.1,0.4526]
[1755979320972,2.86436119,4762.9,4762.8,0.4726]
[1755979321139,11.92263492,4762.9,4762.8,0.315994]
[1755979321344,12.37547059,4762.9,4762.8,0.315994]
[1755979321650,12.48136026,4762.9,4762.8,0.768594]
[1755979322247,12.24501043,4762.9,4762.8,0.768594]
[1755979323355,12.4027926,4762.9,4762.8,0.768594]
[1755979324351,12.00995568,4762.9,4762.8,0.768594]
[1755979324548,12.4016425,4762.9,4762.8,0.768594]
[1755979325879,12.4016425,4762.9,4762.8,0.315994]
[1755979326045,12.4016425,4762.9,4762.8,0.768594]
[1755979326585,8.9156425,4762.9,4762.8,0.768594]
[1755979326892,12.4016425,4762.9,4762.8,0.768594]
[1755979327654,12.20564887,4762.9,4762.8,0.768594]
[1755979327868,12.40134206,4762.9,4762.8,0.768594]
[1755979328290,12.20564887,4762.9,4762.8,0.768594]
[1755979330333,12.20564887,4762.9,4762.8,0.004494]
[1755979331084,11.877031,4762.9,4762.8,0.004494]
[1755979331263,11.877031,4762.9,4762.8,0.315994]
[1755979331463,11.877031,4762.9,4762.8,0.768594]
[1755979332259,11.877031,4762.9,4762.8,0.316994]
[1755979332488,11.877031,4762.9,4762.8,0.005494]
[1755979333470,12.07272261,4762.9,4762.8,0.769594]
[1755979334180,12.40130633,4762.9,4762.8,0.769594]
[1755979334377,12.40130633,4762.9,4762.8,0.005494]
[1755979335692,12.40130633,4762.9,4762.8,0.769594]
[1755979337184,12.40130633,4762.9,4762.8,0.316994]
[1755979337386,12.00996492,4762.9,4762.8,0.316994]
[1755979337561,12.40155158,4762.9,4762.8,0.316994]
[1755979338361,12.07296786,4762.9,4762.8,0.316994]
[1755979338978,12.07296786,4762.9,4762.8,0.005494]
[1755979340592,12.07296786,4762.9,4762.8,0.767894]
[1755979341105,8.58696786,4762.9,4762.8,0.299394]
[1755979341396,6.208517,4762.9,4762.8,0.767894]
[1755979341702,8.21713954,4762.9,4762.8,0.767894]
[1755979342267,8.41329478,4762.9,4762.8,0.767894]
[1755979343391,8.70775432,4762.9,4762.8,0.767894]
[1755979346284,8.86287263,4762.9,4762.8,0.767894]
[1755979347098,8.66671739,4762.9,4762.8,0.767894]
[1755979347416,11.7144105,4762.9,4762.8,0.299394]
[1755979347617,11.51794454,4762.9,4762.8,0.299394]
[1755979347791,11.51794454,4762.9,4762.8,0.005494]
[1755979347792,11.38584441,4762.9,4762.8,0.005494]
[1755979347989,11.69914441,4762.9,4762.8,0.005494]
[1755979348488,12.8871685,4762.9,4762.8,0.005494]
[1755979348789,12.8891685,4762.9,4762.8,0.005494]
[1755979350098,12.13524441,4762.9,4762.8,0.005494]
[1755979350891,12.25319311,4762.9,4762.8,0.005494]
[1755979351489,12.58178687,4762.9,4762.8,0.005494]